bitfinex-derivatives/quotes_ETHF0:USTF0_20250101
["timestamp","ask_amount","ask_price","bid_price","bid_amount"]
[1735770134154,0.76472,3373.5,3373.4,0.29702]
[1735770137756,0.29704,3373.3,3373.2,0.29703]
[1735770138749,0.4677,3373.5,3373.0,40.8]
[1735770139050,0.29704,3373.4,3373.3,0.29703]
[1735770142061,0.76472,3373.5,3373.4,0.29703]
[1735770143860,0.29704,3373.4,3373.3,0.29703]
[1735770144057,0.4677,3373.5,3373.1,0.29705]
[1735770144058,0.29705,3373.2,3373.1,0.29705]
[1735770144653,0.4677,3373.5,3373.0,40.8]
[1735770144856,0.29705,3373.2,3373.1,0.29704]
[1735770145160,0.4677,3373.5,3373.2,0.29703]
[1735770145161,0.29704,3373.3,3373.2,0.29703]
[1735770147158,0.29704,3373.3,3373.2,0.29705]
[1735770147867,0.29706,3373.1,3373.0,0.29705]
[1735770149660,3.2078,3373.4,3372.8,0.4217]
[1735770149860,0.29709,3372.8,3372.6,41.42487112]
[1735770150075,0.29709,3372.8,3372.7,0.29708]
[1735770150775,0.75198,3372.9,3372.8,0.29708]
[1735770152173,0.75198,3372.9,3372.1,5.44633347]
[1735770152174,7.99051347,3372.9,3371.3,3.2078]
[1735770152375,0.29713,3372.3,3372.2,0.29713]
[1735770152677,0.29714,3372.2,3372.1,0.29713]
[1735770152976,0.76403,3372.2,3372.1,0.29713]
[1735770153380,3.2078,3372.4,3371.8,0.4328]
[1735770153675,3.2078,3372.4,3372.3,0.29712]
[1735770157781,3.50492,3372.4,3372.3,0.29712]
[1735770157979,3.2078,3372.4,3371.9,0.8829]
[1735770158278,0.29714,3372.2,3372.1,0.29713]
[1735770158478,0.4387,3372.3,3371.9,0.8829]
[1735770158671,0.29714,3372.2,3371.9,0.8829]
[1735770158878,0.29714,3372.2,3372.1,0.29714]
[1735770159175,0.29715,3372.1,3372.0,0.29715]
[1735770159575,0.4387,3372.3,3371.9,0.8829]
[1735770159777,0.4387,3372.3,3372.1,0.29714]
[1735770159778,0.29714,3372.2,3372.1,0.29714]
[1735770159983,3.50494,3372.2,3372.1,0.29714]
[1735770160779,3.50494,3372.2,3371.8,0.4328]
[1735770160780,3.2078,3372.2,3371.8,0.4328]
[1735770160983,3.2078,3372.2,3372.1,0.29714]
[1735770162076,3.50493,3372.2,3372.1,0.29714]
[1735770163979,0.29716,3371.9,3371.8,0.72996]
[1735770164178,0.29716,3371.9,3371.8,0.4328]
[1735770164482,0.4581,3372.1,3371.3,0.8553]
[1735770164677,0.76077,3371.8,3371.7,0.29717]
[1735770167190,0.29719,3371.7,3371.6,0.29718]
[1735770167380,0.76078,3371.8,3371.7,0.29718]
[1735770168489,0.29718,3371.7,3371.6,0.29718]
[1735770170285,0.4636,3371.8,3371.3,41.6553]
[1735770170286,0.2972,3371.5,3371.4,0.2972]
[1735770173393,3.2078,3371.7,3371.3,0.4327]
[1735770173583,0.2972,3371.4,3371.3,0.4327]
[1735770173789,0.2972,3371.4,3371.3,0.72991]
[1735770175782,0.7573,3371.5,3371.4,0.2972]
[1735770177387,0.7573,3371.5,3371.3,0.29721]
[1735770177388,0.2972,3371.4,3371.3,0.29721]
[1735770177592,0.29723,3371.2,3371.1,0.29723]
[1735770177790,0.4246,3371.3,3371.2,0.29722]
[1735770177990,0.72181,3371.3,3371.2,0.29722]
[1735770179199,0.29723,3371.2,3371.1,0.29722]
[1735770180396,0.4246,3371.3,3371.0,0.4391]
[1735770180590,0.29723,3371.1,3371.0,0.73633]
[1735770180988,3.6324,3371.3,3370.6,41.2599]
[1735770181295,0.29725,3371.0,3370.9,0.29724]
[1735770182099,0.29724,3371.1,3371.0,0.29723]
[1735770184703,3.6324,3371.3,3370.6,41.7283]
[1735770184893,0.29725,3370.9,3370.6,41.7283]
[1735770185098,0.29726,3370.7,3370.6,1.22556]
[1735770185501,0.75526,3370.8,3370.7,0.29726]
[1735770186096,0.29726,3370.7,3370.6,1.22556]
[1735770188399,0.74616,3370.7,3370.6,1.22556]
[1735770189702,0.74616,3370.7,3370.6,0.4684]
[1735770193200,0.29726,3370.7,3370.6,0.4684]
[1735770193397,0.72076,3370.7,3370.6,0.4684]
[1735770193601,0.29727,3370.6,3370.5,0.29728]
[1735770194307,0.29729,3370.5,3370.4,0.29728]
[1735770198109,1.059225,3370.6,3370.3,0.4512]
[1735770198411,0.29734,3370.0,3369.9,0.29733]
[1735770198604,1.356565,3370.0,3369.9,0.74273]
[1735770198909,4.564365,3370.0,3369.9,0.4454]
[1735770199303,4.564365,3370.0,3369.9,0.74274]
[1735770200210,3.50514,3370.0,3369.9,0.74274]
[1735770200710,3.2078,3370.0,3369.7,0.4229]
[1735770201011,0.29735,3369.9,3369.8,0.29734]
[1735770202303,3.50515,3369.9,3369.8,0.29734]
[1735770202809,0.29735,3369.9,3369.8,0.29734]
[1735770203005,3.50515,3369.9,3369.8,0.29734]
[1735770204814,3.2078,3369.9,3369.8,0.29734]
[1735770205505,3.2078,3369.9,3369.8,41.09734]
[1735770210517,0.29729,3370.5,3369.8,40.8]
[1735770210822,0.29729,3370.5,3370.4,0.2973]
[1735770213921,3.50509,3370.5,3370.4,0.2973]
[1735770215016,0.2973,3370.4,3370.3,0.2973]
[1735770217021,0.29731,3370.3,3370.2,0.29731]
[1735770219721,3.2078,3370.5,3369.7,45.17409]
[1735770219921,0.29732,3370.2,3370.1,0.29731]
[1735770220727,0.29734,3370.0,3369.9,0.29733]
[1735770221820,0.4376,3370.3,3369.7,1.48232544]
[1735770222022,0.29735,3369.9,3369.8,0.29734]
[1735770226219,0.29735,3369.9,3369.8,0.72824]
[1735770230324,0.29735,3369.9,3369.8,0.29734]
[1735770233128,0.29735,3369.9,3369.8,41.09734]
[1735770237128,3.2078,3370.1,3369.8,40.8]
[1735770237329,0.29733,3370.0,3369.9,0.29733]
[1735770242631,3.2078,3370.1,3370.0,0.29732]
[1735770245341,12.11562392,3370.2,3370.0,0.29732]
[1735770245342,11.65032392,3370.2,3370.0,1.05942544]
[1735770245528,10.78549173,3370.2,3370.1,3.50512]
[1735770245728,10.78549173,3370.2,3370.1,8.50512]
[1735770245933,10.78549173,3370.2,3370.1,8.96996556]
[1735770246733,0.8932,3370.8,3370.1,8.96996556]
[1735770246734,0.8932,3370.8,3370.7,0.29727]
[1735770246935,0.4584,3370.8,3370.7,0.29727]
[1735770270063,0.75566,3370.8,3370.7,0.29727]
[1735770270462,1.20876,3370.8,3370.7,0.29727]
[1735770274759,0.9115,3370.8,3370.7,0.29727]
[1735770275362,1.20876,3370.8,3370.7,0.29727]
[1735770278060,0.9115,3370.8,3370.7,0.29727]
[1735770278265,1.20876,3370.8,3370.7,0.29727]
[1735770280571,0.9115,3370.8,3370.7,0.29727]
[1735770280966,1.20875,3370.8,3370.7,0.29727]
[1735770281974,0.9115,3370.8,3370.7,0.29727]
[1735770282660,1.20875,3370.8,3370.7,0.29727]
[1735770284462,0.9115,3370.8,3370.7,0.29727]
[1735770285368,1.20875,3370.8,3370.7,0.29727]
[1735770286173,0.9115,3370.8,3370.7,0.29727]
[1735770287272,1.20875,3370.8,3370.7,0.29727]
[1735770287773,0.9115,3370.8,3370.7,0.29727]
[1735770288474,1.20875,3370.8,3370.7,0.29727]
[1735770289169,0.9115,3370.8,3370.7,0.29727]
[1735770290467,3.2078,3371.4,3370.7,1.05942544]
[1735770290664,3.2078,3371.4,3371.3,0.29721]
[1735770290975,1.3343,3371.7,3371.6,0.29719]
[1735770296079,3.50496,3372.0,3371.9,0.29716]
[1735770296080,3.2078,3372.0,3371.9,0.29716]
[1735770296379,3.2078,3372.0,3371.9,1.35658544]
[1735770298373,0.8733,3372.3,3372.2,0.29714]
[1735770300576,0.4258,3372.3,3372.2,0.29714]
[1735770306490,14.626,3377.4,3372.2,1.05942544]
[1735770306687,0.4625,3373.2,3372.6,1.05942544]
[1735770306883,0.4625,3373.2,3373.1,0.29706]
[1735770307391,0.4625,3373.2,3373.1,1.35648544]
[1735770313689,0.8733,3373.4,3373.1,1.05942544]
[1735770313890,0.8733,3373.4,3373.3,0.29704]
[1735770323598,3.2078,3373.8,3373.3,1.05942544]
[1735770323797,1.3386,3373.7,3373.3,1.05942544]
[1735770323999,0.29702,3373.6,3373.5,0.29702]
[1735770333099,3.2078,3373.8,3373.3,1.05942544]
[1735770333299,3.2078,3373.8,3373.1,3.2078]
[1735770333300,0.434,3373.6,3373.5,1.35644544]
[1735770334000,0.73101,3373.6,3373.5,1.35644544]
[1735770334602,0.434,3373.6,3373.5,1.35644544]
[1735770334905,0.73101,3373.6,3373.5,1.35644544]
[1735770335104,0.434,3373.6,3373.5,1.35644544]
[1735770338503,3.2078,3374.4,3373.5,1.05942544]
[1735770338704,0.9173,3373.8,3373.7,0.29701]
[1735770339603,0.4659,3374.0,3373.7,1.05942544]
[1735770339810,0.4659,3374.0,3373.9,1.35641544]
[1735770340107,0.4676,3374.1,3374.0,0.29698]
[1735770340410,3.2078,3374.8,3374.7,0.29692]
[1735770340799,3.50471,3374.8,3374.7,0.29692]
[1735770341005,3.95441,3374.8,3374.7,0.29692]
[1735770341509,3.2078,3374.8,3374.7,0.29692]
[1735770342109,3.2078,3375.3,3375.2,0.29687]
[1735770342304,4.1329,3375.3,3375.2,1.35629544]
[1735770342506,12.73379316,3375.8,3375.2,1.05942544]
[1735770342700,12.73379316,3375.8,3375.7,1.35626544]
[1735770343809,0.9274,3376.0,3375.7,1.05942544]
[1735770344007,0.9274,3376.0,3375.9,0.29682]
[1735770345221,11.6307984,3376.5,3376.3,0.29678]
[1735770345413,11.6307984,3376.5,3376.4,1.35620544]
[1735770345723,11.6307984,3376.5,3376.4,42.15620544]
[1735770346122,3.2078,3376.9,3376.8,0.29674]
[1735770347222,3.50453,3376.9,3376.7,0.29675]
[1735770347519,3.50453,3376.9,3376.4,40.8]
[1735770347520,0.29675,3376.8,3376.4,40.8]
[1735770347720,0.29675,3376.8,3376.6,0.29675]
[1735770348322,3.2078,3376.9,3376.4,40.8]
[1735770348522,0.29674,3376.8,3376.2,3.58386573]
[1735770348825,0.29674,3376.8,3376.6,0.29675]
[1735770349122,0.29675,3376.8,3376.6,0.29675]
[1735770349322,3.2078,3376.9,3376.2,3.58386573]
[1735770349526,0.29676,3376.6,3376.4,0.29677]
[1735770349914,0.29674,3376.8,3376.1,0.2968]
[1735770350118,0.29678,3376.4,3376.1,0.2968]
[1735770350426,0.29682,3376.0,3375.7,0.29683]
[1735770350724,0.4574,3375.9,3375.7,0.29683]
[1735770351516,0.4574,3375.9,3375.6,3.2078]
[1735770351517,0.4574,3375.9,3375.8,0.29683]
[1735770351722,0.4574,3375.9,3375.7,0.29683]
[1735770351925,0.4574,3375.9,3375.8,0.29683]
[1735770352523,0.4574,3375.9,3375.6,3.2078]
[1735770352721,0.4574,3375.9,3375.2,3.2078]
[1735770352923,0.4574,3375.9,3374.9,3.58286573]
[1735770352924,0.29687,3375.4,3374.9,3.58286573]
[1735770353123,0.29688,3375.3,3375.0,0.29689]
[1735770353322,0.29688,3375.3,3374.9,2.40086573]
[1735770353323,0.4286,3375.6,3374.9,2.40086573]
[1735770353624,0.29687,3375.4,3375.2,0.29688]
[1735770354329,0.4286,3375.6,3374.9,2.40086573]
[1735770354626,0.29688,3375.3,3375.1,0.29689]
[1735770355124,0.29687,3375.4,3375.2,0.29688]
[1735770357133,0.29687,3375.4,3375.3,0.29687]
[1735770361430,3.2078,3375.5,3374.9,2.40086573]
[1735770361622,3.50466,3375.5,3375.4,0.29686]
[1735770361824,0.29686,3375.4,3375.3,0.29687]
[1735770363426,3.2078,3375.5,3375.2,2.40086573]
[1735770363628,3.50464,3375.5,3375.2,2.40086573]
[1735770363824,3.50464,3375.5,3375.4,0.29684]
[1735770371340,3.50762507,3375.5,3375.4,0.29684]
[1735770372035,3.21078507,3375.5,3375.2,2.40086573]
[1735770372231,0.29684,3375.4,3375.3,0.29684]
[1735770374939,0.29684,3375.4,3375.3,0.29685]
[1735770380341,0.29983507,3375.5,3375.4,0.29685]
[1735770380737,0.00298507,3375.5,3375.4,0.29685]
[1735770381337,0.00298507,3375.5,3375.4,0.73935]
[1735770382543,0.00298507,3375.5,3375.4,41.53935]
[1735770384748,0.00298507,3375.5,3375.4,41.78148496]
[1735770385745,0.00298507,3375.5,3375.4,42.20408496]
[1735770386254,0.00298507,3375.5,3375.4,41.96195]
[1735770389352,0.00298507,3375.5,3375.4,43.14095]
[1735770391446,0.00298507,3375.5,3375.4,42.69845]
[1735770397257,0.29983507,3375.5,3375.4,42.26485]
[1735770402865,0.00298507,3375.5,3375.4,42.26485]
[1735770403569,0.00298507,3375.5,3375.4,40.8]
[1735770403753,0.00298507,3375.5,3375.1,3.2078]
[1735770403754,0.29687,3375.2,3375.1,3.2078]
[1735770403957,1.03903,3375.4,3374.9,0.2969]
[1735770404258,0.2969,3375.0,3374.9,0.2969]
[1735770404658,0.2969,3375.0,3374.9,41.0969]
[1735770406461,0.2969,3375.0,3374.9,40.8]
[1735770406661,0.2969,3375.0,3374.9,41.0969]
[1735770408661,0.2969,3375.0,3374.6,3.2078]
[1735770408862,0.29692,3374.7,3374.6,3.2078]
[1735770409269,0.29692,3374.7,3374.6,44.0078]
[1735770410263,0.29692,3374.7,3374.6,44.30473]
[1735770410662,0.29692,3374.7,3374.6,44.0078]
[1735770411062,0.29692,3374.7,3374.6,40.8]
[1735770412063,0.2969,3375.0,3374.5,0.29693]
[1735770412263,0.73123,3374.6,3374.5,0.29693]
[1735770412663,0.73123,3374.6,3374.5,41.09693]
[1735770412864,0.73123,3374.6,3374.5,40.8]
[1735770413967,0.73123,3374.6,3374.1,0.29696]
[1735770413968,0.29695,3374.3,3374.1,0.29696]
[1735770414171,0.4362,3374.5,3373.9,0.50852053]
[1735770414367,0.29698,3374.0,3373.9,0.50852053]
[1735770414667,0.4362,3374.5,3373.7,3.5048]
[1735770414668,0.297,3373.8,3373.7,3.5048]
[1735770414870,0.297,3373.8,3373.7,44.3048]
[1735770415264,0.7293,3373.8,3373.7,44.0078]
[1735770415474,0.7293,3373.8,3373.7,3.2078]
[1735770417669,0.29702,3373.5,3373.4,0.29703]
[1735770419163,0.4552,3373.7,3373.3,40.8]
[1735770419368,0.29703,3373.4,3373.3,41.09703]
[1735770420176,0.29703,3373.4,3373.3,40.8]
[1735770420675,0.4552,3373.7,3373.1,3.2078]
[1735770420876,0.29705,3373.2,3373.1,3.2078]
[1735770425580,0.29706,3373.1,3373.0,0.29706]
[1735770425781,0.75066,3373.1,3373.0,0.29706]
[1735770432081,0.29706,3373.1,3373.0,0.29706]
[1735770432283,0.29707,3373.0,3372.9,0.73697117]
[1735770441889,0.29707,3373.0,3372.9,0.43990117]
[1735770442096,0.29708,3372.9,3372.8,2.93362017]
[1735770442298,0.74968,3372.9,3372.8,2.93362017]
[1735770442694,1.17888,3372.9,3372.8,2.93362017]
[1735770444299,0.8818,3372.9,3372.5,3.2078]
[1735770444490,0.2971,3372.6,3372.5,3.2078]
[1735770445297,1.5195966,3372.8,3372.3,40.8]
[1735770445497,0.29712,3372.4,3372.3,40.8]
[1735770447001,3.50492,3372.4,3372.3,40.8]
[1735770447195,0.29712,3372.4,3372.3,40.8]
[1735770448501,0.29716,3372.0,3371.9,0.29715]
[1735770449903,1.3292,3372.3,3371.8,40.8]
[1735770450100,0.29716,3372.0,3371.9,0.29716]
[1735770451008,0.29716,3371.9,3371.8,41.09717]
[1735770451505,1.3292,3372.3,3371.8,40.8]
[1735770451706,0.29716,3371.9,3371.8,40.8]
[1735770452606,2.97824523,3372.2,3371.7,3.62592736]
[1735770452797,0.72097,3371.8,3371.7,3.62592736]
[1735770453203,0.72097,3371.8,3371.7,0.41812736]
[1735770456109,0.29718,3371.7,3371.6,40.8]
[1735770456406,1.17978,3371.7,3371.6,40.8]
[1735770456807,0.29721,3371.4,3371.3,3.2078]
[1735770457108,0.29722,3371.3,3371.2,0.29722]
[1735770457301,0.4218,3371.3,3371.2,41.09722]
[1735770457502,0.71902,3371.3,3371.2,41.09722]
[1735770458202,0.8826,3371.7,3371.2,41.09722]
[1735770458405,3.2078,3372.3,3371.3,0.4417]
[1735770458601,0.29714,3372.2,3372.1,0.29714]
[1735770458806,3.2078,3372.3,3372.2,0.29713]
[1735770458807,0.29713,3372.3,3372.2,0.29713]
[1735770459207,0.29713,3372.3,3372.2,41.09713]
[1735770461107,0.29712,3372.4,3372.3,0.29712]
[1735770461710,1.3222,3372.5,3372.1,40.8]
[1735770461906,1.61932,3372.5,3372.4,0.29712]
[1735770462908,0.29713,3372.4,3372.3,0.29712]
[1735770465307,0.29714,3372.3,3372.2,0.29713]
[1735770468308,0.29714,3372.2,3372.1,0.29714]
[1735770472707,0.29715,3372.1,3372.0,3.50495]
[1735770473508,0.29715,3372.1,3372.0,0.29715]
[1735770473709,0.29715,3372.1,3372.0,3.50495]
[1735770475920,0.29715,3372.1,3372.0,0.29715]
[1735770476120,0.29715,3372.1,3372.0,3.50495]
[1735770476519,0.29715,3372.1,3372.0,0.29715]
[1735770476725,0.29714,3372.2,3372.1,0.29714]
[1735770479632,0.29713,3372.4,3372.3,0.29712]
[1735770479923,0.29713,3372.4,3371.9,0.29716]
[1735770479924,0.29716,3372.0,3371.9,0.29716]
[1735770480226,0.29718,3371.8,3371.7,0.29718]
[1735770480423,0.29719,3371.7,3371.6,0.29718]
[1735770481219,0.29718,3371.8,3371.7,0.29717]
[1735770481819,1.35540065,3371.8,3371.7,0.29717]
[1735770487226,1.05822065,3371.8,3371.7,0.29717]
[1735770494930,2.73998065,3371.9,3371.8,0.29717]
[1735770498930,0.29718,3371.8,3371.7,0.29718]
[1735770502627,2.73999065,3371.9,3371.8,0.29717]
[1735770506135,14.42017199,3371.9,3371.8,0.29717]
[1735770507036,13.06478134,3371.9,3371.8,0.29717]
[1735770507332,14.12300199,3371.9,3371.8,0.29717]
[1735770511330,14.42016199,3371.9,3371.8,0.29717]
[1735770521642,0.29718,3371.8,3371.7,0.29717]
[1735770528046,14.12300199,3371.9,3371.5,3.2078]
[1735770528250,1.35541065,3371.6,3371.5,3.2078]
[1735770531747,0.29721,3371.4,3371.3,0.29721]
[1735770531957,1.35543065,3371.4,3371.3,0.29721]
[1735770532455,2.24043065,3371.4,3371.3,0.29721]
[1735770534555,13.92061199,3371.4,3371.3,0.29721]
[1735770534756,13.62340199,3371.4,3370.9,0.4541]
[1735770534964,0.29723,3371.3,3371.2,0.29722]
[1735770535561,0.29723,3371.3,3371.2,41.09722]
[1735770537055,1.35545065,3371.3,3371.2,41.09722]
[1735770538849,1.35545065,3371.3,3371.2,0.29722]
[1735770541158,12.86239134,3371.4,3371.3,0.29722]
[1735770541360,13.92061199,3371.4,3371.3,0.29722]
[1735770544163,13.62340199,3371.4,3371.0,0.4368]
[1735770544462,0.29723,3371.3,3371.2,0.29722]
[1735770557866,1.35545065,3371.3,3371.2,0.29722]
[1735770562167,0.29724,3371.2,3371.1,0.29723]
[1735770573977,12.73840199,3371.3,3370.8,3.95096]
[1735770574175,1.05822065,3370.9,3370.8,3.50506]
[1735770574589,1.05822065,3370.9,3370.8,3.9698497]
[1735770574885,1.05822065,3370.9,3370.8,44.7698497]
[1735770576580,1.05822065,3370.9,3370.8,3.9698497]
[1735770577183,1.05822065,3370.9,3370.8,3.50506]
[1735770577483,1.05822065,3370.9,3370.8,3.96985173]
[1735770585793,1.05822065,3370.9,3370.8,3.50506]
[1735770587090,1.95332065,3370.9,3370.8,3.50506]
[1735770587287,2.25055065,3370.9,3370.8,3.50506]
[1735770588898,2.25055065,3370.9,3370.8,3.2078]
[1735770589092,2.25055065,3370.9,3370.8,3.50504]
[1735770592688,0.8951,3370.9,3370.8,3.50504]
[1735770592897,1.95332065,3370.9,3370.8,3.50504]
[1735770594493,0.8951,3370.9,3370.8,3.50504]
[1735770594695,1.95332065,3370.9,3370.8,3.50504]
[1735770600403,0.8951,3370.9,3370.8,3.50504]
[1735770600599,1.95332065,3370.9,3370.8,3.50504]
[1735770604000,0.8951,3370.9,3370.8,3.50504]
[1735770604300,11.68018134,3371.0,3370.9,0.29723]
[1735770604604,11.68018134,3371.0,3370.9,1.62521002]
[1735770604904,11.68018134,3371.0,3370.9,7.53723506]
[1735770605204,11.49448134,3371.0,3370.9,7.53723506]
[1735770605405,11.49448134,3371.0,3370.9,7.24576414]
[1735770605803,11.49448134,3371.0,3370.9,48.04576414]
[1735770606005,1.05822065,3371.6,3371.5,0.29718]
[1735770608605,1.3257,3371.9,3371.4,3.2078]
[1735770608807,1.3257,3371.9,3371.8,0.29715]
[1735770609106,2.38392065,3371.9,3371.8,3.50495]
[1735770610207,2.38392065,3371.9,3371.8,0.29715]
[1735770614907,2.68106065,3371.9,3371.8,0.29715]
[1735770615212,2.38392065,3371.9,3371.8,0.29715]
[1735770617905,2.68106065,3371.9,3371.8,0.29715]
[1735770618710,2.38392065,3371.9,3371.8,0.29715]
[1735770618903,2.68106065,3371.9,3371.8,0.29715]
[1735770629313,2.68106065,3371.9,3371.6,0.29717]
[1735770629314,0.29717,3371.7,3371.6,0.29717]
[1735770629518,1.35539065,3371.7,3371.6,0.29717]
[1735770632619,0.29717,3371.7,3371.6,0.29717]
[1735770632822,0.29717,3371.7,3371.5,3.2078]
[1735770632823,0.29716,3371.8,3371.7,0.29715]
[1735770651639,0.29717,3371.7,3371.6,0.29716]
[1735770656838,1.05822065,3371.8,3371.5,3.2078]
[1735770657148,0.29717,3371.6,3371.5,3.2078]
[1735770657542,0.74297,3371.5,3371.1,3.2078]
[1735770657737,1.05822065,3371.2,3370.8,0.29724]
[1735770657943,0.29723,3370.9,3370.8,0.29724]
[1735770658144,1.35545065,3370.9,3370.8,0.29724]
[1735770658339,1.05822065,3370.9,3370.7,0.40640729]
[1735770658540,0.72734,3370.8,3370.7,0.70364729]
[1735770660849,0.72734,3370.8,3370.7,0.40640729]
[1735770661946,0.72734,3370.8,3370.7,0.70365729]
[1735770662244,0.72734,3370.8,3370.7,0.40640729]
[1735770666953,0.29727,3370.5,3370.4,0.29727]
[1735770668655,1.05822065,3370.6,3370.3,3.2078]
[1735770668855,0.29727,3370.5,3370.4,0.29727]
[1735770670653,1.05822065,3370.6,3370.3,3.2078]
[1735770670851,1.35548065,3370.6,3370.5,0.29727]
[1735770673959,1.05822065,3370.6,3370.3,3.2078]
[1735770674256,1.05822065,3370.4,3370.3,3.50508]
[1735770674650,1.52612065,3370.4,3370.3,3.50508]
[1735770675154,1.52612065,3370.4,3370.3,0.29728]
[1735770677155,0.4679,3370.4,3370.3,0.29728]
[1735770680866,0.76517,3370.4,3370.3,0.29728]
[1735770681758,0.29728,3370.3,3370.2,3.50509]
[1735770681956,1.18288,3370.3,3370.2,3.50509]
[1735770682361,1.18288,3370.3,3370.2,3.2078]
[1735770682564,2.24110065,3370.3,3370.2,3.2078]
[1735770684661,1.94382065,3370.3,3370.0,0.2973]
[1735770684862,1.35552065,3370.1,3370.0,0.2973]
[1735770686373,0.2973,3370.1,3370.0,0.2973]
[1735770686760,1.35552065,3370.1,3370.0,0.2973]
[1735770692062,2.24111065,3370.3,3370.2,0.29729]
[1735770692358,0.29725,3370.8,3370.7,0.29724]
[1735770692562,0.73305,3370.8,3370.7,0.29724]
[1735770692864,0.4358,3370.8,3370.7,0.29724]
[1735770694877,0.73304,3370.8,3370.7,0.29724]
[1735770696172,0.4358,3370.8,3370.5,3.2078]
[1735770696378,0.29726,3370.7,3370.6,0.29725]
[1735770702773,0.29727,3370.5,3370.4,4.56328065]
[1735770703077,0.29727,3370.5,3370.4,3.50506]
[1735770703977,0.29727,3370.5,3370.4,4.56328065]
[1735770704181,0.4358,3370.8,3370.4,4.26602065]
[1735770704380,0.29726,3370.6,3370.5,0.29726]
[1735770705279,0.4358,3370.8,3370.4,4.26602065]
[1735770705579,0.29727,3370.6,3370.5,0.29726]
[1735770706274,0.29727,3370.5,3370.4,4.56328065]
[1735770707175,0.29727,3370.5,3370.4,3.2078]
[1735770709982,0.73417,3370.5,3370.4,3.2078]
[1735770713881,0.4369,3370.5,3370.2,0.29729]
[1735770714184,0.29728,3370.3,3370.2,0.29729]
[1735770716580,0.2973,3370.2,3370.1,4.56332065]
[1735770717378,0.2973,3370.3,3370.2,0.29729]
[1735770719583,0.8989,3370.4,3370.1,4.26602065]
[1735770719790,1.19619,3370.4,3370.3,0.29729]
[1735770720279,0.8989,3370.4,3370.1,4.26602065]
[1735770720475,0.29731,3370.3,3370.2,0.2973]
[1735770721182,0.29731,3370.3,3370.2,3.5051]
[1735770721483,1.1962,3370.4,3370.3,0.2973]
[1735770723479,0.29731,3370.3,3370.2,0.2973]
[1735770723795,0.8989,3370.4,3370.1,3.2078]
[1735770724084,0.29731,3370.2,3370.1,3.50511]
[1735770728893,0.29731,3370.2,3370.1,0.29731]
[1735770729192,0.8989,3370.4,3370.0,4.72952065]
[1735770729393,0.29731,3370.3,3370.2,0.2973]
[1735770734495,1.1962,3370.4,3370.3,0.2973]
[1735770738400,0.29731,3370.3,3370.2,0.29731]
[1735770738900,1.1962,3370.4,3370.3,0.2973]
[1735770739100,1.1962,3370.4,3370.0,1.05822065]
[1735770739101,0.29731,3370.3,3370.2,0.29731]
[1735770739701,0.29732,3370.2,3370.1,0.29731]
[1735770739998,0.2973,3370.3,3370.2,0.29731]
[1735770740393,0.8989,3370.4,3370.1,0.29732]
[1735770740394,0.29732,3370.2,3370.1,0.29732]
[1735770741207,0.29731,3370.3,3370.2,0.29731]
[1735770741501,0.29731,3370.2,3370.1,0.29731]
[1735770742401,0.8989,3370.4,3370.0,1.05822065]
[1735770742607,0.29731,3370.3,3370.2,0.29731]
[1735770743504,1.95712065,3370.4,3369.9,3.2078]
[1735770743706,0.29733,3370.0,3369.9,3.2078]
[1735770744504,0.29734,3369.9,3369.8,0.29735]
[1735770744704,1.64824,3369.9,3369.8,0.29735]
[1735770745401,1.64824,3369.9,3369.7,0.40653354]
[1735770745402,1.3509,3369.9,3369.7,0.40653354]
[1735770745604,1.64824,3369.9,3369.8,0.29735]
[1735770753908,1.3509,3369.9,3369.8,0.29735]
[1735770755415,11.70779138,3370.1,3370.0,0.29733]
[1735770755612,11.70779138,3370.1,3370.0,4.56335065]
[1735770756305,11.70779138,3370.4,3370.0,4.56335065]
[1735770756510,11.70779138,3370.4,3370.3,1.35552065]
[1735770757619,11.70779138,3370.4,3370.3,0.2973]
[1735770759714,12.00508138,3370.4,3370.3,0.2973]
[1735770761012,0.2973,3370.3,3370.2,0.2973]
[1735770762203,0.2973,3370.3,3370.0,3.2078]
[1735770762204,0.29732,3370.1,3370.0,3.50512]
[1735770762418,0.29732,3370.1,3370.0,3.2078]
[1735770762914,0.75242,3370.1,3370.0,3.2078]
[1735770769219,1.81064065,3370.1,3370.0,3.2078]
[1735770771107,0.29733,3370.0,3369.9,0.29733]
[1735770771312,0.72833,3370.0,3369.9,0.29733]
[1735770772215,0.2973,3370.4,3369.8,1.05822065]
[1735770772415,0.4546,3370.4,3370.3,0.2973]
[1735770772914,0.431,3370.6,3370.5,0.29729]
[1735770773715,3.2078,3370.7,3370.3,0.8528]
[1735770774021,0.29726,3370.8,3370.7,0.29726]
[1735770774520,1.51282065,3370.9,3370.3,0.8528]
[1735770774720,0.29727,3370.7,3370.6,0.29727]
[1735770776523,0.29727,3370.7,3370.5,0.29728]
[1735770776712,0.29729,3370.5,3370.3,41.6528]
[1735770776916,1.05822065,3370.7,3370.3,0.4268]
[1735770777418,0.2973,3370.5,3370.3,0.7241]
[1735770778620,0.2973,3370.4,3370.3,0.7241]
[1735770779027,0.2973,3370.4,3370.3,0.4268]
[1735770779325,0.2973,3370.4,3370.3,0.7241]
[1735770780337,0.2973,3370.4,3370.3,0.4268]
[1735770780635,0.29729,3370.5,3370.3,0.7241]
[1735770781332,0.2973,3370.4,3370.3,0.7241]
[1735770783930,0.2973,3370.4,3370.3,0.4268]
[1735770784637,0.29732,3370.1,3370.0,3.2078]
[1735770790338,0.29735,3369.8,3369.7,0.40653354]
[1735770790541,1.35557065,3369.8,3369.7,0.40653354]
[1735770796545,1.79827065,3369.8,3369.7,0.40653354]
[1735770798342,0.29737,3369.6,3369.5,3.2078]